Cogmind - Beta 15 @@@ ROGUE MODE // 2025.07.21 @ 22:56:37 Player: opdo Result: Destroyed by Executioner via exploding Deuterium Array Performance ------------- Evolutions (5) 2500 Regions Visited (8) 1600 Robots Destroyed (54) 270 Value Destroyed (1987) 1987 Prototype IDs (15) 300 Alien Tech Used (0) 0 Bonus (1439) 1439 TOTAL SCORE: 8096 Bonus ------- Follower Combat Kills 139 Registered with UFD 300 Met Optimus in HQ 500 MAIN.C Attacked Warlord 500 Cogmind --------- Core Integrity 0/1000 Matter 196/300 Energy 148/375 System Corruption 2% Temperature Danger (481) Movement Treading (400) Ox3 Location -5/Warlord Parts ------- > --- POWER (2) -------- Light Nuclear Core Neutrino Core > --- PROPULSION (4) --- Improved Treads Backup Propulsion III > --- UTILITY (8) ------ Large Storage Unit Improved Target Analyzer Advanced Thermal Shield Shock Absorption System Improved Shock Absorption System Point Defense System > --- WEAPON (3) ------- Heavy Beamcaster Railgun Thermoblaster > --- INVENTORY (15) --- Compact Battery (200) Matter Compressor (250) Advanced Terrain Scanner Advanced Targeting Computer Phase Shifter Makeshift Ablative Armor Makeshift Ablative Armor Minesniffer Drone Bay (10/10) Thermoblaster Vortex Lance (40) Peak State ------------ > --- POWER ------------ Light Nuclear Core Neutrino Core > --- PROPULSION ------- Improved Treads Backup Propulsion III > --- UTILITY ---------- Large Storage Unit Compact Battery Improved Target Analyzer Advanced Thermal Shield Shock Absorption System Improved Shock Absorption System Point Defense System Minesniffer Drone Bay > --- WEAPON ----------- Heavy Beamcaster Railgun Vortex Lance > --- INVENTORY -------- Compact Battery Matter Compressor Advanced Terrain Scanner Advanced Targeting Computer Phase Shifter Makeshift Ablative Armor Makeshift Ablative Armor Thermoblaster Thermoblaster [Rating: 81] Favorites ----------- Power Light Nuclear Core Engine Ion Engine Power Core Light Nuclear Core Propulsion Light Treads Treads Light Treads Leg Improved Titanium Leg Hover Unit Backup Propulsion III Utility Large Storage Unit Device Structural Scanner Storage Large Storage Unit Processor Advanced Targeting Computer Hackware Improved Hacking Suite Protection Makeshift Light Armor Plating Weapon Light Assault Rifle Energy Gun Heavy Beamcaster Ballistic Gun Light Assault Rifle Ballistic Cannon Battle Cannon Launcher Subdweller Shrapnel Launcher Slashing Weapon Power Sword Piercing Weapon Spear Build | -11 -10 -10 -8 -6 -5 -5 -5 -5 ------- Run | Yrd Mat Sub Scr Fac Fac Upp Upp War Slots Evolved 10 | . . . . 8 2 . . . Power 1 | . . . . 1 . . . . Propulsion 2 | . . . . 2 . . . . Utility 6 | . . . . 4 2 . . . Weapon 1 | . . . . 1 . . . . Parts Attached 84 | 7 8 4 6 21 4 1 30 3 Power 13 | 1 1 1 1 4 . . 5 . Engine 8 | 1 1 1 1 1 . . 3 . Core 5 | . . . . 3 . . 2 . Reactor . | . . . . . . . . . Propulsion 23 | 2 . 1 2 7 . . 11 . Treads 6 | 2 . 1 . 1 . . 2 . Leg 17 | . . . 2 6 . . 9 . Wheel . | . . . . . . . . . Hover . | . . . . . . . . . Flight . | . . . . . . . . . Utility 27 | 2 5 . 1 5 3 . 10 1 Device 12 | 1 2 . 1 2 . . 5 1 Storage 5 | 1 2 . . . 1 . 1 . Processor 6 | . . . . 2 2 . 2 . Hackware 1 | . . . . . . . 1 . Protection 3 | . 1 . . 1 . . 1 . Artifact . | . . . . . . . . . Weapon 21 | 2 2 2 2 5 1 1 4 2 Energy Gun 1 | . . . . . . . 1 . Energy Cannon . | . . . . . . . . . Ballistic Gun 11 | 2 2 . . 4 . 1 2 . Ballistic Cannon 1 | . . 1 . . . . . . Launcher 3 | . . 1 . 1 . . . 1 Special Weapon . | . . . . . . . . . Impact Weapon . | . . . . . . . . . Slashing Weapon 3 | . . . 1 . 1 . 1 . Piercing Weapon 2 | . . . 1 . . . . 1 Special Melee Weapon . | . . . . . . . . . Unidentified Prototypes 2 | . . . . . . . . 2 Parts Lost 48 | . 2 3 . 7 . 6 29 1 Power 8 | . 1 . . 2 . 2 3 . Propulsion 17 | . . 2 . 1 . 1 13 . Utility 14 | . 1 . . 2 . 2 8 1 Weapon 9 | . . 1 . 2 . 1 5 . Highest Loss Streak 17 | . 2 2 . 3 . 4 17 1 To Critical Strikes 1 | . . . . . . . 1 . Average Backups 11 | 2 9 14 14 14 14 15 5 8 Power . | . . . 1 1 2 2 . . Propulsion 1 | 2 3 2 . 1 3 3 . . Utility 7 | . 5 7 9 9 7 7 4 6 Weapon 2 | . . 4 3 3 2 3 . 1 Tool/Special . | . . . . . . . . . Unused Backups 27 | . 2 5 7 5 . . . 8 Power 2 | . 1 . . 1 . . . . Propulsion 5 | . 1 2 2 . . . . . Utility 15 | . . 2 3 3 . . . 7 Weapon 5 | . . 1 2 1 . . . 1 Tool/Special . | . . . . . . . . . Average Slot Usage (%) 86 | . 99 94 87 91 96 89 64 86 Engine 7 | . 14 14 14 4 . . 1 . Core 4 | . . . . 6 11 10 6 11 Treads 10 | . 28 23 5 4 . . 3 5 Leg 7 | . . . 19 18 23 22 4 . Device 15 | . 12 14 14 13 11 6 10 24 Storage 11 | . 14 14 14 6 5 5 8 11 Processor 6 | . . . . 11 19 23 12 9 Energy Gun 1 | . . . . . . . 3 5 Ballistic Gun 11 | . 28 22 1 18 15 12 1 4 Launcher 1 | . . 4 1 . . . . . Slashing Weapon 3 | . . . 7 . 1 . 4 4 Piercing Weapon 1 | . . . 6 . . . . . Peak Build Rating 81 | 9 9 11 25 65 69 69 67 81 Average Rating 37 | 5 8 9 17 53 65 61 45 70 On Entrance 32 | . 9 8 11 25 62 69 44 66 Naked Turns . | . . . . . . . . . Heaviest Build 78 | 14 28 35 35 63 59 59 67 78 Greatest Support 76 | 40 40 40 33 76 75 75 75 23 Greatest Overweight (x) 12 | . . 1 1 1 . . 12 9 Average Overweight (x) . | . . . . . . . 1 6 Largest Inventory Capacity 25 | 8 15 15 15 15 25 15 15 15 Average Capacity 14 | 6 11 15 15 15 15 15 15 15 Most Carried 15 | 4 14 15 15 15 15 15 14 13 Average Carried 11 | 2 9 14 14 14 14 15 5 8 Final Capacity 15 | 8 15 15 15 15 15 15 15 15 Final Carried 15 | 4 14 15 15 15 15 15 5 10 Class Distribution -------------------- 52% | Mutant 32% | Derelict-Mutant 9% | Tank Dominant Class ---------------- Mutant | -10/Materials Mutant | -10/Subcaves Mutant | -8/Scraptown Tank | -6/Factory Gunner | -5/Factory Mutant | -5/Upper Caves Derelict-Mutant | -5/Upper Caves Derelict-Mutant | -5/Warlord Resources | -11 -10 -10 -8 -6 -5 -5 -5 -5 ----------- Run | Yrd Mat Sub Scr Fac Fac Upp Upp War Matter Collected 2588 | 161 409 233 374 474 . 52 885 . Remotely . | . . . . . . . . . Salvage Created 2216 | 26 453 85 . 609 25 155 863 . Parts 110 | 1 27 6 . 37 2 5 32 . Haulers Intercepted 1 | . 1 . . . . . . . Recyclers Shooed 2 | 1 . . . 1 . . . . Parts Field Recycled . | . . . . . . . . . Retrieved Matter . | . . . . . . . . . Parts Self-Destructed 36 | . . . . . . 5 31 . Prevented 3 | . . . . . . . 3 . Kills | -11 -10 -10 -8 -6 -5 -5 -5 -5 ------- Run | Yrd Mat Sub Scr Fac Fac Upp Upp War Combat Hostiles Destroyed 49 | . 13 3 . 16 . 3 14 . Melee 5 | . . . . 1 . . 4 . Guns 33 | . 13 . . 7 . 3 10 . Cannons 1 | . . 1 . . . . . . AOE 10 | . . 2 . 8 . . . . Classes Destroyed 13 | 1 4 2 . 3 1 1 1 . Tunneler 2 | 1 1 . . . . . . . Hauler 1 | . 1 . . . . . . . Operator 1 | . . . . . 1 . . . Watcher 1 | . 1 . . . . . . . Swarmer 15 | . 6 . . 5 . 1 3 . Grunt 17 | . 7 . . 7 . . 3 . Brawler 2 | . . . . . . 1 1 . Duelist 4 | . . . . 1 . 1 2 . Sentry 2 | . . . . 1 . . 1 . Programmer 2 | . . . . 2 . . . . Artisan 1 | . . 1 . . . . . . Subdweller 3 | . . 3 . . . . . . Samaritan 4 | . . . . . . . 4 . Wasp 3 | . . . . . . . 3 . Thug 1 | . . . . . . . 1 . Best Kill Streak 6 | 1 6 2 . 4 1 2 4 . Combat Bots Only 6 | . 6 2 . 4 . 2 4 . Max Kills in Single Turn 4 | 1 1 1 . 4 1 1 2 . Gunslinging . | . . . . . . . . . Exploded 4 | . . 1 . 4 . . . . Melee 1 | . . . . 1 . . 1 . Uniques/NPCs Destroyed . | . . . . . . . . . Combat | -11 -10 -10 -8 -6 -5 -5 -5 -5 -------- Run | Yrd Mat Sub Scr Fac Fac Upp Upp War Hostile Shots Fired 494 | . 73 15 . 109 . 87 185 25 Missed 143 | . 19 1 . 22 . 51 41 9 Hits 351 | . 54 14 . 87 . 36 144 16 Melee 29 | . . . . 4 . 8 15 2 Projectile 322 | . 54 14 . 83 . 28 129 14 AOE 1 | . . . . . . . . 1 Critical Strikes 17 | . . . . 6 . 3 6 2 Damage Taken 6482 | . 550 330 . 1370 . 780 3025 427 Core 1330 | . 109 87 . 93 . 100 806 135 Absorbed by Shields 635 | . . . . 352 . 84 199 . Ignored by Resistances 104 | . . . . . . . . 104 Regen/Repaired (Parts) 74 | . . . . . . . . 74 Core Remaining (%) 70 | 100 . . 21 89 . . . . Volleys Fired 146 | 3 63 9 . 31 3 6 27 4 Largest 3 | 2 2 2 . 3 3 3 2 3 Hottest 376 | 40 40 60 . 94 88 88 81 376 Shots Fired 303 | 6 127 19 . 72 9 18 42 10 Gun 291 | 6 127 13 . 68 9 18 42 8 Cannon 2 | . . 2 . . . . . . Launcher 10 | . . 4 . 4 . . . 2 Special . | . . . . . . . . . Kinetic 277 | 6 127 19 . 68 9 18 26 4 Thermal 22 | . . . . . . . 16 6 Explosive 4 | . . . . 4 . . . . Electromagnetic . | . . . . . . . . . Robot Hit Streak 18 | 4 12 10 . 11 2 6 18 4 Robot Miss Streak 6 | 1 5 1 . 5 6 5 3 6 Penetration Max 1 | . . . . 1 . 1 1 1 Secondary Targets 5 | . . . . 1 . 1 3 . Max Gunslinging Chain 1 | . . . . 1 . 1 1 . Shots Hit Robots 235 | 4 71 16 . 60 6 14 59 5 Core Hits 131 | 1 33 6 . 48 3 10 24 6 Critical Kills 1 | . 1 . . . . . . . Critical Parts Destroyed 3 | . 1 . . 1 . . 1 . Critical Strikes 9 | . 2 . . 2 . . 5 . Destroy 4 | . 2 . . 1 . . 1 . Sever 5 | . . . . 1 . . 4 . Melee Attacks 51 | . . . . 8 3 . 40 . Impact . | . . . . . . . . . Slashing 46 | . . . . 3 3 . 40 . Piercing 5 | . . . . 5 . . . . Sneak Attacks 7 | . . . . 1 . . 6 . Combat Hostiles . | . . . . . . . . . Follow-up Attacks 1 | . . . . 1 . . . . Damage Inflicted 6346 | 46 714 410 . 1989 99 304 2166 618 Guns 3048 | 46 705 35 . 1006 99 304 693 160 Cannons 24 | . . 24 . . . . . . Explosions 1518 | . . 351 . 709 . . . 458 Melee 1742 | . . . . 274 . . 1468 . Ramming 14 | . 9 . . . . . 5 . Kinetic 3192 | 46 705 410 . 1006 99 304 530 92 Thermal 903 | . . . . 214 . . 163 526 Explosive 495 | . . . . 495 . . . . Electromagnetic . | . . . . . . . . . Impact . | . . . . . . . . . Slashing 1626 | . . . . 158 . . 1468 . Piercing 116 | . . . . 116 . . . . Highest Corruption 23 | . 1 1 1 . . 4 23 23 Average Corruption 6 | . 1 1 1 . . 2 18 21 Corruption Purged . | . . . . . . . . . Corruption Blocked . | . . . . . . . . . Effects 108 | . 4 12 13 . . . 73 6 Message Errors 23 | . 1 4 3 . . . 13 2 Matter Fused 26 | . 1 3 5 . . . 17 . Heat Flow Errors 16 | . . 2 1 . . . 13 . Energy Discharges 7 | . 1 1 2 . . . 2 1 Parts Rejected 2 | . . . . . . . 2 . Parts Fused 1 | . . . . . . . 1 . Data Loss (minor) 17 | . . . 1 . . . 15 1 Data Loss (major) 4 | . . . . . . . 3 1 Misfires 7 | . 1 1 . . . . 5 . Alerts 4 | . . 1 1 . . . 2 . Weapon Failures 1 | . . . . . . . . 1 Overload Shots . | . . . . . . . . . Overflow Damage 416 | . . . . 143 . . 266 7 Projectiles . | . . . . . . . . . Explosions 139 | . . . . 132 . . . 7 Melee 277 | . . . . 11 . . 266 . Knockbacks 1 | . 1 . . . . . . . Impact 1 | . 1 . . . . . . . Kinetic . | . . . . . . . . . Secondary . | . . . . . . . . . Self-Inflicted Damage 235 | . . . . 235 . . . . Shots 3 | . . . . 3 . . . . Rammed 4 | . 4 . . . . . . . Targets Rammed 5 | . 4 . . . . . 1 . Kicked 1 | . . . . . . . 1 . Crushed . | . . . . . . . . . Highest Temperature 481 | . 12 261 97 171 54 115 273 481 Average Temperature 63 | . 7 122 47 53 23 49 81 109 Received Heat Transfer 1649 | . 177 . . 426 . 103 826 117 Effects 2 | . . . . . . . 2 . Interference 2 | . . . . . . . 2 . Siege Activations . | . . . . . . . . . Martial Activations . | . . . . . . . . . Shielding Activations . | . . . . . . . . . Robots Disrupted . | . . . . . . . . . Combat Hostiles . | . . . . . . . . . Robots Corrupted . | . . . . . . . . . Combat Hostiles . | . . . . . . . . . Parts Fried . | . . . . . . . . . Impact Corruptions . | . . . . . . . . . Robots Melted . | . . . . . . . . . Combat Hostiles . | . . . . . . . . . Parts Melted 1 | . . . . . . . 1 . Heat Transferred 861 | . . . . 100 . . 259 502 Parts Sabotaged . | . . . . . . . . . Parts Stolen . | . . . . . . . . . Parts Stripped . | . . . . . . . . . Power Chain Reactions . | . . . . . . . . . Alert | -11 -10 -10 -8 -6 -5 -5 -5 -5 ------- Run | Yrd Mat Sub Scr Fac Fac Upp Upp War Maximum Alert Level 1 | . . . . 1 . . . . Low Security (%) 93 | 100 100 . . 85 100 . . . Level 1 6 | . . . . 14 . . . . Level 2 . | . . . . . . . . . Level 3 . | . . . . . . . . . Level 4 . | . . . . . . . . . Level 5 . | . . . . . . . . . High Security . | . . . . . . . . . Max Security . | . . . . . . . . . Peak Influence 233 | 5 154 . . 233 104 . . . Initial 99 | . . . . . 99 . . . Average 60 | . 52 . . 72 66 . . . Influence Increases 1357 | 5 351 . . 522 11 135 318 15 Destroy 0b10 Robot/C 920 | . 260 . . 320 . 60 280 . Destroy 0b10 Robot/NC 25 | 5 15 . . . 5 . . . Destroy Leader 124 | . 54 . . 50 . . 20 . Allied During Kill 18 | . . . . . . . 18 . Successful Hack 17 | . 7 . . 10 . . . . Disable Machine 90 | . . . . 90 . . . . Destroy Structure 58 | . . . . 52 6 . . . Lose Combat Pursuer 105 | . 15 . . . . 75 . 15 Influence Decreases 1356 | 5 351 . . 319 184 165 318 14 Entered New Map 116 | . . . . . 104 12 . . Time Decay 1007 | 5 331 . . 269 80 110 208 4 Lost Part 233 | . 20 . . 50 . 43 110 10 Squads Dispatched 10 | . 2 . . 6 1 . 1 . Investigation 3 | . . . . 3 . . . . Extermination 2 | . . . . 2 . . . . Reinforcement 4 | . 2 . . 1 1 . . . Assault 1 | . . . . . . . 1 . Garrison . | . . . . . . . . . Intercept . | . . . . . . . . . Searches Triggered . | . . . . . . . . . Construction Impeded 1 | . . . . 1 . . . . Haulers Reinforced . | . . . . . . . . . Active Scanning Responses . | . . . . . . . . . Cargo Convoy Interrupts . | . . . . . . . . . Stealth | -11 -10 -10 -8 -6 -5 -5 -5 -5 --------- Run | Yrd Mat Sub Scr Fac Fac Upp Upp War Distress Signals 1 | . 1 . . . . . . . Communications Jammed . | . . . . . . . . . Distress Signals . | . . . . . . . . . Times Spotted 85 | . 21 3 . 18 1 11 20 11 Peak Tracking Total 9 | . 6 2 . 5 1 9 9 9 Tactical Retreats 5 | . 1 . . . . 3 . 1 Traps | -11 -10 -10 -8 -6 -5 -5 -5 -5 ------- Run | Yrd Mat Sub Scr Fac Fac Upp Upp War Traps Triggered 3 | . 1 1 . 1 . . . . Indirectly . | . . . . . . . . . Trap Hack Attempts . | . . . . . . . . . Triggered . | . . . . . . . . . Disarmed . | . . . . . . . . . Reprogrammed . | . . . . . . . . . Reused . | . . . . . . . . . Traps Extracted . | . . . . . . . . . Installed . | . . . . . . . . . Triggered . | . . . . . . . . . Machines | -11 -10 -10 -8 -6 -5 -5 -5 -5 ---------- Run | Yrd Mat Sub Scr Fac Fac Upp Upp War Machines Disabled 6 | . . . . 6 . . . . Max in Single Turn 4 | . . . . 4 . . . . Machines Repaired . | . . . . . . . . . Machines Dismantled . | . . . . . . . . . Machines Sabotaged . | . . . . . . . . . Overloaded Fab Kills . | . . . . . . . . . Hacking | -11 -10 -10 -8 -6 -5 -5 -5 -5 --------- Run | Yrd Mat Sub Scr Fac Fac Upp Upp War Machines Accessed 20 | . 5 . 4 6 . . . 5 Terminals 8 | . 5 . . 3 . . . . Fabricators . | . . . . . . . . . Repair Stations . | . . . . . . . . . Recycling Units 3 | . . . . 3 . . . . Scanalyzers . | . . . . . . . . . Garrison Access . | . . . . . . . . . Total Hacks 46 | . 14 . 10 15 . . . 7 Successful 31 | . 6 . 10 8 . . . 7 Failed 15 | . 8 . . 7 . . . . Catastrophic 1 | . . . . 1 . . . . Database Lockouts . | . . . . . . . . . Manual 26 | . 14 . . 12 . . . . Terminals 23 | . 14 . . 9 . . . . Fabricators . | . . . . . . . . . Repair Stations . | . . . . . . . . . Recycling Units 6 | . . . . 6 . . . . Scanalyzers . | . . . . . . . . . Garrison Access . | . . . . . . . . . Terminal Hacks 18 | . 1 . 10 . . . . 7 Record 15 | . . . 9 . . . . 6 Open Door 1 | . . . . . . . . 1 Terminal Index 1 | . 1 . . . . . . . Proto ID Catalog 1 | . . . 1 . . . . . Fabricator Hacks . | . . . . . . . . . Repair Station Hacks . | . . . . . . . . . Recycling Unit Hacks . | . . . . . . . . . Scanalyzer . | . . . . . . . . . Garrison Access Hacks . | . . . . . . . . . Unauthorized Hacks 13 | . 5 . . 8 . . . . Terminals 10 | . 5 . . 5 . . . . Botnet 4 | . 2 . . 2 . . . . Operators 1 | . . . . 1 . . . . Skim 5 | . 3 . . 2 . . . . Fabricators . | . . . . . . . . . Repair Stations . | . . . . . . . . . Recycling Units 3 | . . . . 3 . . . . Fedlink 3 | . . . . 3 . . . . Scanalyzers . | . . . . . . . . . Garrison Access . | . . . . . . . . . Data Cores Recovered . | . . . . . . . . . Used . | . . . . . . . . . Hacking Detections 10 | . 5 . . 5 . . . . Full Trace Events . | . . . . . . . . . Feedback Events . | . . . . . . . . . Feedback Blocked . | . . . . . . . . . Robot Schematics Acquired . | . . . . . . . . . Robots Built . | . . . . . . . . . Authchips . | . . . . . . . . . Time . | . . . . . . . . . Total Robot Build Rating . | . . . . . . . . . Part Schematics Acquired . | . . . . . . . . . Parts Built . | . . . . . . . . . Authchips . | . . . . . . . . . Time . | . . . . . . . . . Total Part Build Rating . | . . . . . . . . . Parts Repaired . | . . . . . . . . . Time . | . . . . . . . . . Parts Recycled . | . . . . . . . . . Recycled Matter . | . . . . . . . . . Retrieved Matter . | . . . . . . . . . Retrieved Components . | . . . . . . . . . Parts Scanalyzed . | . . . . . . . . . Part Schematics Acquired . | . . . . . . . . . Parts Damaged . | . . . . . . . . . Bothacking | -11 -10 -10 -8 -6 -5 -5 -5 -5 ------------ Run | Yrd Mat Sub Scr Fac Fac Upp Upp War Used RIF Installer . | . . . . . . . . . Robots Hacked . | . . . . . . . . . Non-combat . | . . . . . . . . . Combat . | . . . . . . . . . Robot Hacks Applied . | . . . . . . . . . Relay Couplers Released . | . . . . . . . . . Fabnet Peak Effective % . | . . . . . . . . . Robots Rewired 2 | . . . . . . . 2 . Allies Hacked . | . . . . . . . . . Hacks Repelled . | . . . . . . . . . Allies | -11 -10 -10 -8 -6 -5 -5 -5 -5 -------- Run | Yrd Mat Sub Scr Fac Fac Upp Upp War Total Allies 2 | . . . . . . . 2 . Largest Group 2 | . . . . . . . 2 1 Highest-Rated Group 59 | . . . . . . . 59 30 Highest-Rated Ally 30 | . . . . . . . 30 30 Total Orders . | . . . . . . . . . Ally Attacks 29 | . . . . . . . 27 2 Total Damage 678 | . . . . . . . 645 33 Kills 4 | . . . . . . . 4 . Allies Corrupted . | . . . . . . . . . Allies Melted 1 | . . . . . . . . 1 Intel | -11 -10 -10 -8 -6 -5 -5 -5 -5 ------- Run | Yrd Mat Sub Scr Fac Fac Upp Upp War Active Infowar (turns) 5683 | 11 987 1428 1554 1062 172 242 227 . Terrain 120 | 11 109 . . . . . . . Structural 5562 | . 878 1428 1554 1061 172 242 227 . Decoding 1703 | . . . . 1062 172 242 227 . Robot Analysis Total . | . . . . . . . . . Derelict Logs Recovered 5 | . . . 4 . . . 1 . Drone Launches . | . . . . . . . . . Drone Recoveries . | . . . . . . . . . Decoded 0b10 Intel 16 | . . . . 11 5 . . . Garrisons 1 | . . . . 1 . . . . Patrols 11 | . . . . 7 4 . . . Investigations 2 | . . . . 2 . . . . Reinforcements 2 | . . . . 1 1 . . . Exploration | -11 -10 -10 -8 -6 -5 -5 -5 -5 ------------- Run | Yrd Mat Sub Scr Fac Fac Upp Upp War Turns Passed 9398 | 93 1100 1428 1720 1066 172 242 1552 2025 Spaces Moved 4165 | 48 543 768 1116 522 117 175 557 319 Core 11 | 5 . . . . . . 6 . Treads 1914 | 43 543 768 109 . . . 357 94 Legs 2015 | . . . 1007 522 117 175 194 . Wheels . | . . . . . . . . . Hover 225 | . . . . . . . . 225 Flight . | . . . . . . . . . Fastest Speed 50 | 50 160 160 125 125 127 126 120 320 Average Speed 206 | 148 160 180 151 166 127 126 239 627 Slowest Speed 820 | 160 160 240 240 200 127 127 650 820 Overloaded Moves . | . . . . . . . . . Propulsion Burnouts . | . . . . . . . . . Robots Hopped . | . . . . . . . . . Potential Cave-ins . | . . . . . . . . . Cave-ins Triggered . | . . . . . . . . . Exploration Rate (%) 44 | 5 91 45 81 15 6 44 55 61 Regions Visited 8 Branch Regions 5 Pre-discovered Areas 2 | . . . 1 1 . . . . Known Exits Taken 1 | . . . . . . 1 . . Unknown Exits Taken 7 | 1 1 1 1 1 1 . 1 . Scrap Searched 11 | . . 5 3 . . 1 2 . Spaces Dug 3 | . . . . . 3 . . . Terrain Destroyed 132 | . . 48 . 75 3 1 3 2 Melee 3 | . . . . . 3 . . . Projectile 4 | . . . . 1 . 1 2 . AOE 124 | . . 48 . 74 . . . 2 Terrain Rammed . | . . . . . . . . . Walls Destroyed . | . . . . . . . . . Machines Disabled . | . . . . . . . . . Actions | -11 -10 -10 -8 -6 -5 -5 -5 -5 --------- Run | Yrd Mat Sub Scr Fac Fac Upp Upp War Total 4634 | 61 665 798 1147 647 128 181 669 338 Wait 59 | . 26 1 . 32 . . . . Move 4157 | 47 542 767 1115 521 116 174 556 319 Hop . | . . . . . . . . . Pick Up 62 | 4 15 10 10 14 1 . 4 4 Fast Attach 43 | 7 . . 3 12 2 . 19 . Attach 31 | . 2 2 1 6 1 . 15 4 Detach 7 | . . . 2 . . . . 5 Swap 26 | . 6 2 3 9 1 1 2 2 Drop 43 | . 7 7 13 15 1 . . . Fire 146 | 3 63 9 . 31 3 6 27 4 Melee 50 | . . . . 7 3 . 40 . Ram . | . . . . . . . . . Kick 1 | . . . . . . . 1 . Crush 4 | . 4 . . . . . . . Escape Stasis . | . . . . . . . . . Rewire 5 | . . . . . . . 5 . Trap . | . . . . . . . . . Miscellaneous . | . . . . . . . . . Route ------- -11/Scrapyard -10/Materials (discovered 6 exits: [*Mat x3] / [*Min x2] / [*Sub]) -10/Subcaves (discovered 3 exits: [*Mat x2] / *Scr) -8/Scraptown -6/Factory -5/Factory -5/Upper Caves -5/Upper Caves -5/Warlord History --------- Turn | Location | Event 8 | -11/Scrapyard | Discovered new exit (range 16) 94 | -11/Scrapyard | Entered Materials 187 | -10/Materials | Discovered new exit (range 4) 300 | -10/Materials | Build established: Mutant 621 | -10/Materials | Discovered new exit (range 10) 944 | -10/Materials | Discovered new exit (range 6) 1010 | -10/Materials | Discovered new exit (range 14) 1075 | -10/Materials | Discovered new exit (range 11) 1119 | -10/Materials | Discovered new exit (range 6) 1194 | -10/Materials | Entered Subcaves 1195 | -10/Subcaves | Approached by a straggling Scientist 1334 | -10/Subcaves | Scientist uncovered a shortcut to Scraptown 1384 | -10/Subcaves | Core integrity fell below 50% 1931 | -10/Subcaves | Shifting Twisted Machinery released Sub. Optics 1934 | -10/Subcaves | Shifting Twisted Machinery released Sub. Laser 1965 | -10/Subcaves | Discovered new exit (range 12) 2103 | -10/Subcaves | Discovered new exit (range 15) 2622 | -10/Subcaves | Entered Scraptown 3094 | -8/Scraptown | Visited IN-MT5's Study 3156 | -8/Scraptown | Visited Comm Corps 3212 | -8/Scraptown | Scanned Subdweller tech in exchange for log data 3216 | -8/Scraptown | Learned Factory stockpile data 3218 | -8/Scraptown | Learned 12 Research zone layouts 3220 | -8/Scraptown | Learned location of 1 exit from Upper Caves 3222 | -8/Scraptown | Learned location of Warlord (-5) 3589 | -8/Scraptown | Visited UFD Registry 3589 | -8/Scraptown | Registered with UFD as "Gausshead" 3619 | -8/Scraptown | Visited Research Penetration Think Tank 3647 | -8/Scraptown | Visited Curators Association 3667 | -8/Scraptown | Visited Chapter 10 3894 | -8/Scraptown | Visited Scrapoid Research Area 3930 | -8/Scraptown | Visited Derelict Rescue Squad 3950 | -8/Scraptown | Visited Junk Repository 3962 | -8/Scraptown | Visited Scrap Suit Storage 3999 | -8/Scraptown | Visited Infowarlord's Domain 4039 | -8/Scraptown | Visited Science Guys 4082 | -8/Scraptown | Visited Modified Component R&D 4243 | -8/Scraptown | Met Optimus 4243 | -8/Scraptown | Accepted into 0bPrime 4337 | -8/Scraptown | Discovered new exit (range 3) 4342 | -8/Scraptown | Entered Factory 4342 | -6/Factory | Evolved 8 slots: Power x1, Propulsion x2, Utility x4, Weapon x1 4697 | -6/Factory | Build established: Tank 5140 | -6/Factory | Loaded intel: 8 recycling unit locations 5209 | -6/Factory | Learned location of Protoforge (-3) 5321 | -6/Factory | Lost 3 parts (1p1n1w) 5370 | -6/Factory | Discovered new exit (range 8) 5408 | -6/Factory | Entered another Factory area 5408 | -5/Factory | Evolved 2 slots: Utility x2 5556 | -5/Factory | Discovered new exit (range 8) 5580 | -5/Factory | Entered Upper Caves 5581 | -5/Upper Caves | Identified exit to Upper Caves 5585 | -5/Upper Caves | Attracted the attention of an 0b10 outpost 5606 | -5/Upper Caves | Attracted the attention of an 0b10 checkpoint 5811 | -5/Upper Caves | P-70 Sage assimilated allied Q5-9HT(r) 5822 | -5/Upper Caves | Entered another Upper Caves area 5852 | -5/Upper Caves | Lost 4 parts (2p1n1u) 5856 | -5/Upper Caves | Ambushed by wild Derelicts 5983 | -5/Upper Caves | Attracted the attention of an 0b10 outpost 6015 | -5/Upper Caves | System corruption reached 10% 6085 | -5/Upper Caves | Core integrity fell below 50% 6091 | -5/Upper Caves | Lost 17 parts (2p6n5u4w) 6176 | -5/Upper Caves | Lost 6 parts (1p4n1u) 6240 | -5/Upper Caves | Core integrity fell below 20% 6286 | -5/Upper Caves | Lost 6 parts (3n2u1w) 6288 | -5/Upper Caves | Build established: Mutant 6614 | -5/Upper Caves | Build established: Derelict-Mutant 6755 | -5/Upper Caves | Discovered new exit (range 15) 7374 | -5/Upper Caves | Entered Warlord 7374 | -5/Warlord | Accompanied by 1 ally 7483 | -5/Warlord | System corruption cleaned by Quarantine Array 8674 | -5/Warlord | Warlord's base attacked by MAIN.C 8786 | -5/Warlord | Learned Factory fabricator intel 8786 | -5/Warlord | Learned Research repair station intel 8801 | -5/Warlord | Learned Quarantine trap positions 8801 | -5/Warlord | Learned Research emergency access door positions 8897 | -5/Warlord | Found Prototype Device 8897 | -5/Warlord | Identified Minesniffer Drone Bay 9024 | -5/Warlord | Warlord forces counterattacked 9235 | -5/Warlord | Found Prototype Piercing Weapon 9235 | -5/Warlord | Identified Vortex Lance 9240 | -5/Warlord | Lost 3 allies 9349 | -5/Warlord | Warlord base infiltrated, sounded retreat 9382 | -5/Warlord | Spotted Executioner 9399 | -5/Warlord | Destroyed by Executioner via exploding Deuterium Array Last Messages --------------- Behemoth squads. 09389_ I-47 Archangel triggered Fire Trap. 09389_ Burning plasma bursts from the floor. 09389_ Critical hit (Burn: +37). 09391_ Com. Battery destroyed. 09391_ System corrupted by crushing effect (+2). 09392_ I-47 Archangel heat damages Com. Battery, Com. Wheel, Antimatter Reactor. 09392_ System corrupted: Thermoblaster failed to launch. 09395_ Slug penetrates B-60 Warrior. 09396_ Penetrated by Slug. 09396_ Slug penetrates Wall. 09398_ I-47 Archangel heat short circuits Com. Wheel. 09398_ Destroyed Com. Battery. 09399_ Slug penetrates Deuterium Array. 09399_ Deuterium Array explodes. 09399_ I-47 Archangel destroyed. 09399_ G-50 Soldier destroyed. Map ----- +----------------------------------------------------+ | ?????????? #???????# ######### | | ?????????? #######?# + | | ???????#"""" # #?# # | | ???????#"""" # """ ########### | | ???????#"""" # """ + ^^ | | ???????#"""" # """ ### ############# | | ???????# # #?###?# # | | ???????# # """ #?????# + | | ???????# # """ #?????# ##+ | | ???????######+#+# """ #?????# # | | ?####### # #?????#########?# | | #"""""## + #???????????????# | | #"""""## # ################# | | #"" " # ###### ##"""""""""""""#### | | #""" + #????########""" """""""#??? | | #"" " #^^^#???????????#""""X ""#??? | | #"""""##^^ #???????????#""" ""#??? | | #"""""## #???????????# " ""#??? | | ?####### #???????????# ] ""#??? | | ???????# #???????????# """/ ""#??? | | ???????# #???????????#""""/ "#??? | | ???????# #??##"""##??#""""]] #??? | | ???????# #?## X##?#"""""""[[ #??? | | ???????# #?# #?############ #??? | | ??????#; ;##### ############++#??? | | ???????# @b= #??? | | ???????# b%g E #??? | | ???????# =% #??? | | ???????# i X##############??? | | ?????##; ###"# ###????????? | | ?????# =% #????????? | | ?????# *%= #??? | | ???###+#######+############## #?? | | ?### ###??## ###????????????? " #?? | | ?#"" ""#??#! !#??????????????? #?? | | ?#"" ""#??#! !!#????????????????? #?? | | ?#"X X"#??#! !!#??????????????????? #?? | | ?#"""X"""#??#""""#??????????????????????? | | ?#"""""""#??#""""#??????????????????????? | | ?#########??######??????????????????????? | | ????????????????????????????????????????? | | ????????????????????????????????????????? | | ????????????????????????????????????????? | | ????????????????????????????????????????? | | ????????????????????????????????????????? | | ????????????????????????????????????????? | | ????????????????????????????????????????? | | ????????????????????????????????????????? | | ????????????????????????????????????????? | | ????????????????????????????????????????? | +----------------------------------------------------+ Best States ------------- Heat Dissipation 40 Energy Generation 31 Energy Capacity 575 Matter Stores 300 Matter Capacity 300 Sight Range 16 Terrain Scan Range 16 Terrain Scan Density 10 Armor Coverage 150 Resistance: TH 30 Resistance: EX 50 Utility Shielding 33 Point Defense Rating 80 Evasion (%) 63 Targeting Accuracy 16 Melee Accuracy 5 Target Analysis 6 Core Analysis 6 Recoil Reduction 2 Item Schematics ----------------- None Robot Schematics ------------------ None Fabricated ------------ Nothing Repaired ---------- Nothing Alien Tech Used ----------------- None Achievements -------------- None Challenges ------------ None Game ------ Seed DiametricTowerStabilizer Manual? 0 Play Time 00:39:09 Cumulative 100.6 hours Start 2025.07.09 @ 21:30:01 End 2025.07.21 @ 22:56:37 Sessions 3 Manual Loads 0 Difficulty Rogue Special Mode None Game No. 269 Rogue 267 Adventurer 2 Explorer 0 Win Type - Total 1 Types 1/0/0/0/0/0/0/0/0/0 Lore% 74 Gallery% 60 Achievement% 50 Wizard Run 0 Options --------- Layout 2 ASCII 0 Keyboard 0 Movement Arrows Keybinds 0 Fullscreen 2 Font 24/Smallcaps Map View 50x44 Zoom Use 0% Tactical HUD 1 Map Filters NONE Filters NONE Steam 1 RUN: 43aee1dc-1e2c-40fa-bc51-c6610e1601bf